{"text_format":"1","workbook":"xlsx","n_sheets":17,"sheets":["Services-Produits","Reference","Patients","Wisnu Hermawan","Wahyu Hadiningrat","Agus Andriyanto","Putri Kusuma Mardiono","Muhamad Mardiono","Fajar Hadi Prabowo","Murat Ismael","Ong Hang Ling","Peter Pramana","Andrea Wulandari Iravan","Darmo Pranoto Soenjoto","Prodjo Handajo Sunjoto","Nonda Nellyana Djaja","Reference2p"],"not_rendered":{"charts":0,"images":3,"macros":1,"external_links":0,"defined_names":3,"comments":0,"pivot_tables":0},"unopened":[],"bounds":{"document_bytes":16777216,"sheet_cells":100000,"rows_first":2000,"rows_last":500,"rows_between":2000,"halvings":0,"cell_chars":16384,"cell_head_chars":4096},"cells_cut":0,"cells_raw":0,"read":"whole","date_system":"1900"}

{"sheet":"Services-Produits","index":0,"n_rows":164,"n_cols":4,"rows_kept":164,"cut":false,"hidden":false,"merged":[]}
["Produit","Price"]
["Abbott Freestyle 2",91.4]
["Abbott Sensor",65.3]
["Antioxidant Mix",410]
["Artesunat",67.2]
["Bactoflor",69.8]
["Biotin",37.25]
["Biotin + NaCl",37.25]
["B-Kompleks",46.8]
["Black cumin capsules",34.799999999999997]
["Bosvene Akba",215.11]
["Brain Mapping",2148]
["Calcium gluconat",22.6]
["Cholin Inject",43]
["C-Intercell 650 mg Vitamin C, 90 Kapseln",27.99]
["Consultation",1800]
["Creon 25000",111.75]
["Curcumin + NaCl 0,9%",116.22]
["Curcumin 150 mg",229.2]
["Curcumin 75 mg",116.22]
["Darmflorin",25.45]
["Deposit for medical treatment",32215,70000]
["Diabetische Polyneuropathie",347.65]
["Dr. Roland Backhaus"]
["EEG & EKG",1860]
["E-Inject",41.2]
["Epinativ Injection",133.61000000000001]
["Epinative",275.39999999999998]
["Face treatment Chin contouring",600]
["Faktu",8.6999999999999993]
["Famotidin",57.2]
["Fermanose",46.2]
["Fiber-Intercell",40.49]
["Flatulex",8.85]
["Full check up & screening ",1870]
["Full check up & screening, vascular, heart, thyroid & abdomen",2380]
["Full check up & screening, vascular, heart, thyroid, brain mapping & Abdomen",2148]
["Full check ups",1870]
["Full check ups & screenings",1870]
["Gedächtnis Infusion",378]
["Gut Microbiome - 1 transplants",7199.75]
["Gut Microbiome 2 transplants",14399.5]
["Gut Microbiome 3 transplants",21599.25]
["Gut Microbiome 4 transplants",28799]
["Gut Microbiome Therapy",6912.5]
["Gynophilus",19.8]
["Gynopholus",19.7]
["Gynophylus",19.8]
["Hepar",43.7]
["Hydroxiprolin 2 g",68.900000000000006]
["Hypericin 5 mg",218.8,198.7]
["Iberogast",22.2]
["Immunocare",220]
["Immunocare, personalised",195.7]
["Infraorbital",600]
["Infusion: Curcumin 75 mg",116.22]
["Infusion: Nicotiamide",179.8]
["Infusions"]
["Jantung (Herz)",584.5]
["K2 & D3",34.700000000000003]
["Kantong kemih (Harnblase)",381.35]
["Kiki Redjeki Treatment by Dr. Markus Pütz",505.7]
["Laetia",45.3]
["Liserotota",345.3]
["Liv 52",14.9]
["Magentropfen",23]
["Magnesium",39.1,25.45]
["Magnesium 1000 mg",34.68]
["Magnesium Intercell",15.1]
["Memoserin 90 Kapseln",67.7]
["Microbiome",74.95]
["Microbiome body lotion",29.9]
["Microbiome therapy 2 transplants",7199.75]
["Microcare 4 months",571.04999999999995]
["Microcare immuno strong",280]
["Microcare personalised",799.4]
["Microniome face serum",69.900000000000006]
["Mitochondrien",428.7]
["Mitochondrien Infusion",428.7]
["Mitochondrien Mix",2017.3]
["Muskulatur (Otot)",286.39999999999998]
["NAD+",219.66]
["Neuro Amino",87.5,163.19999999999999]
["Neuropathy",347.65]
["Nicotiamide",47]
["Nicotinamide",47,179.8]
["NMN, Rapamune, Sildenafil & Tadalafil",67.8]
["Oliphenolia",183.51]
["Oliphenolia + NaCl 0,9% 150 ml",183.51]
["Omega 3",51.9]
["Omega 7",82.6]
["Omega 7.0",81.349999999999994]
["Oregano oil",21.4]
["Otak kecil (Kleinhirn)",288]
["Ozempic",120.5,129.80000000000001]
["Pantoprazol",17.5]
["Phenylalanine",106.4]
["Phospolipide",31.28]
["Plavix",93.7]
["Polineurophathy",347.65]
["Prodigest",72.349999999999994]
["Q10 i.v. sensitive",178.8]
["Reservatrol + NaCl 0,9% 300 ml",178]
["Resveratrol",178]
["Riboflavin",127.4]
["Riopan",32.4]
["RNA",516.70000000000005]
["RNA Auge",384.45]
["RNA Heart",584.5,516.70000000000005]
["RNA Hepar",374.8]
["RNA Injections 4 vials",516.70000000000005]
["RNA Lunge",381.2]
["RNA Retina",417]
["RNA Thymus",185.7,516.70000000000005]
["Salvans",13.05]
["Screenings Vascular, heart, thyroid & Abdomen",2870]
["Selenium",20.28,41.6]
["Senolytics mixture",670]
["Senolytics Mixture",670]
["Shipping",41.35]
["Shoga Öl",670]
["Spermidin",182.35]
["Tadalafil-Mepha 10 mg",115]
["Tadalafil-Mepha 2.5 mg",115]
["Tadalafil-Mepha 5 mg",115]
["Tamsulosin Retard",59.58]
["Taurin 2g",21.7]
["Testicle ",372.45]
["Thymus",516.70000000000005]
["USG: Vascular, Thyroid & Abdomen ",1480]
["Vascular, Heart, Thyroid & Abdomen",2380]
["Ventrisana",19.2]
["Vistabel 3 zones",750]
["Vit B12",10]
["Vit C",42.7,27.99,49.67]
["Vit C Streuli",30.4]
["Vit D3",37]
["Vit D3",29.8]
["Vit D3 Streuli",26.3]
["Vit E Inject I.M."]
["Vit, B Komplex",46.8]
["Vit. C, Zn",21.4]
["Vit. E IM"]
["Vitamin B12 Amino",15]
["Vitamin C Streuli",21.6]
["Vitamin D3 Intercell",19.8]
["Vit-C Intercell",26.99,27.99]
["Wegovy 0.25 mg",188.15]
["Wegovy 0.5mg",188.15]
["Xanax",42.7]
["Xanax 1 mg",25.15]
["Xanax 2 mg",42.75]
["Zentra inject",60]
["Zn Intercell",20.74]
["Cerebrolysin 10 ml",99.6]
["Cerebrolysin 5 ml",63.8]
["Selenase",175]
["Discount 15%"]
["DCA"]
["Vitarubine"]
["Phago SES"]
["Phago PYO"]
["Protokol Lösung 1 Infusion"]
[" Respiphage"]

{"sheet":"Reference","index":1,"n_rows":40,"n_cols":4,"rows_kept":40,"cut":false,"hidden":false,"merged":[]}
[]
[]
["Invoice: 55H-02406-GM11"]
["                  23.09.2024"]
[null,null,"Treatment by"]
[null,null,"Dr. Roland Backhaus"]
[]
[]
[]
[]
[]
[]
[]
["Description","Qty","Price","Amount"]
[]
[]
[null,null,{"$f":"IFERROR(VLOOKUP(A17,'Services-Produits'!$A$1:$B$2000,2,FALSE),\"\")","v":""},{"$f":"IFERROR(B17*C17,\"\")","v":""}]
[null,null,{"$f":"IFERROR(VLOOKUP(A18,'Services-Produits'!$A$1:$B$2000,2,FALSE),\"\")","v":""},{"$f":"IFERROR(B18*C18,\"\")","v":""}]
[null,null,{"$f":"IFERROR(VLOOKUP(A19,'Services-Produits'!$A$1:$B$2000,2,FALSE),\"\")","v":""},""]
[null,null,{"$f":"IFERROR(VLOOKUP(A20,'Services-Produits'!$A$1:$B$2000,2,FALSE),\"\")","v":""},""]
[null,null,{"$f":"IFERROR(VLOOKUP(A21,'Services-Produits'!$A$1:$B$2000,2,FALSE),\"\")","v":""},""]
[null,null,{"$f":"IFERROR(VLOOKUP(A22,'Services-Produits'!$A$1:$B$2000,2,FALSE),\"\")","v":""},""]
[null,null,{"$f":"IFERROR(VLOOKUP(A23,'Services-Produits'!$A$1:$B$2000,2,FALSE),\"\")","v":""},""]
[null,null,{"$f":"IFERROR(VLOOKUP(A24,'Services-Produits'!$A$1:$B$2000,2,FALSE),\"\")","v":""},""]
[null,null,{"$f":"IFERROR(VLOOKUP(A25,'Services-Produits'!$A$1:$B$2000,2,FALSE),\"\")","v":""},""]
[null,null,{"$f":"IFERROR(VLOOKUP(A26,'Services-Produits'!$A$1:$B$2000,2,FALSE),\"\")","v":""},""]
[null,null,{"$f":"IFERROR(VLOOKUP(A27,'Services-Produits'!$A$1:$B$2000,2,FALSE),\"\")","v":""},""]
[null,null,{"$f":"IFERROR(VLOOKUP(A28,'Services-Produits'!$A$1:$B$2000,2,FALSE),\"\")","v":""},""]
[null,null,{"$f":"IFERROR(VLOOKUP(A29,'Services-Produits'!$A$1:$B$2000,2,FALSE),\"\")","v":""},""]
[null,null,{"$f":"IFERROR(VLOOKUP(A30,'Services-Produits'!$A$1:$B$2000,2,FALSE),\"\")","v":""},""]
[null,null,{"$f":"IFERROR(VLOOKUP(A31,'Services-Produits'!$A$1:$B$2000,2,FALSE),\"\")","v":""},""]
[null,null,{"$f":"IFERROR(VLOOKUP(A32,'Services-Produits'!$A$1:$B$2000,2,FALSE),\"\")","v":""},""]
[null,null,{"$f":"IFERROR(VLOOKUP(A33,'Services-Produits'!$A$1:$B$2000,2,FALSE),\"\")","v":""},""]
[null,null,{"$f":"IFERROR(VLOOKUP(A34,'Services-Produits'!$A$1:$B$2000,2,FALSE),\"\")","v":""},""]
[null,null,{"$f":"IFERROR(VLOOKUP(A35,'Services-Produits'!$A$1:$B$2000,2,FALSE),\"\")","v":""},""]
[null,null,{"$f":"IFERROR(VLOOKUP(A36,'Services-Produits'!$A$1:$B$2000,2,FALSE),\"\")","v":""},""]
[null,null,{"$f":"IFERROR(VLOOKUP(A37,'Services-Produits'!$A$1:$B$2000,2,FALSE),\"\")","v":""},""]
["Total in CHF",null,null,{"$f":"SUM(D17:D37)","v":0}]
[]
["Thank you very much for your trust!"]

{"sheet":"Patients","index":2,"n_rows":60,"n_cols":13,"rows_kept":60,"cut":false,"hidden":false,"merged":[]}
["Adex Yudiswan",null,null,"Jakarta","Indonesia","M","1974-12-03","SM"]
["Agus Andriyanto",null,null,"Jakarta","Indonesia","M","1967-02-16","SM"]
["Andrea Wulandari Iravan",null,null,"Jakarta","Indonesia","F","1995-08-07","N",null,null,null,"Discount5",-0.05]
["Armand Wahyudi Hartono",null,null,"Jakarta","Indonesia","M","1975-05-20","SM",null,null,null,"Discount10",-0.1]
["Budi Satrio",null,null,"Jakarta","Indonesia","M","1976-05-31","SBL",null,null,null,"Discount15",-0.15]
["Chan Choi Moi",null,null,"Jakarta","Indonesia","F","1972-04-28","SM",null,null,null,"Discount20",-0.2]
["Darmo Pranoto Soenjoto",null,null,"Jakarta","Indonesia","M","1946-06-20","N",null,null,null,"Discount25",-0.25]
["Deddy Prasetyo",null,null,"Jakarta","Indonesia","M","1968-07-26","SM",null,null,null,"Discount30",-0.3]
["Dian Siswarini",null,null,"Jakarta","Indonesia","F","1968-05-05","SM",null,null,null,"Discount35",-0.35]
["Dian Suri Iriani",null,null,"Jakarta","Indonesia","F","1979-08-02","SBL",null,null,null,"Discount40",-0.4]
["Dobias Iskandar",null,null,"Jakarta","Indonesia","M","1965-11-16","SM",null,null,null,"Discount45",-0.45]
["Doni Irawan Soenarso",null,null,"Jakarta","Indonesia","M","1957-07-11","SM",null,null,null,"Discount50",-0.5]
["Dr. Putri Kusuma",null,null,"Jakarta","Indonesia","F","1969-01-07","SM",null,null,null,"Discount55",-0.55000000000000004]
["Eileen Patricia Hartono",null,null,"Jakarta","Indonesia","F","1973-05-01","SBL",null,null,null,"Discount60",-0.6]
["Erminda Melayeni",null,null,"Jakarta","Indonesia","F","1975-10-25","SM",null,null,null,"Discount65",-0.65]
["Escy Soeleiman",null,null,"Jakarta","Indonesia","F","1965-12-09","SBL",null,null,null,"Discount70",-0.7]
["Evy Celiyanti",null,null,"Jakarta","Indonesia","F","1972-03-07","SM",null,null,null,"Discount75",-0.75]
["Fajar Hadi Prabowo",null,null,"Jakarta","Indonesia","M","1989-11-14","N",null,null,null,"Discount80",-0.8]
["Herman Herry Adranacus",null,null,"Jakarta","Indonesia","M","1962-11-26","SM",null,null,null,"Discount85",-0.85]
["Isandi Harahap",null,null,"Jakarta","Indonesia","M","1958-12-10","SBL",null,null,null,"Discount90",-0.9]
["Ita Yuliati",null,null,"Jakarta","Indonesia","F","1969-01-07","SM",null,null,null,"Discount95",-0.95]
["Karyoto",null,null,"Jakarta","Indonesia","M","1968-10-27","SBL"]
["Laksmita Artha Widja",null,null,"Jakarta","Indonesia","F","1990-03-03","SM"]
["Lina Iskandar",null,null,"Jakarta","Indonesia","F","1970-06-25","SBL"]
["Maike Yolanda Fiancisca",null,null,"Jakarta","Indonesia","F","1959-02-09","SM"]
["Martha Dwi Maryani",null,null,"Jakarta","Indonesia","F","1969-05-21","SM"]
["Mochamad Iriawan",null,null,"Jakarta","Indonesia","M",null,"SM"]
["Muhamad Mardiono",null,null,"Jakarta","Indonesia","M","1957-07-11","SM"]
["Muhamad Mardiono",null,null,"Jakarta","Indonesia","M","1957-07-11","SM"]
["Muljadi Tjahjono",null,null,"Jakarta","Indonesia","M","1965-07-22","SM"]
["Murat Ismael",null,null,"Jakarta","Indonesia","M","1961-09-11","N"]
["Nonda Nellyana Djaja",null,null,"Jakarta","Indonesia","F","1948-01-12","SM"]
["Novita Ariya",null,null,"Jakarta","Indonesia","F",null,"SM"]
["Nyoman Adhi Suryadnyana",null,null,"Jakarta","Indonesia","M","1974-10-15","SBL"]
["Ong Hang Ling",null,null,"Jakarta","Indonesia","M","1938-12-12","N"]
["Peter Pramana",null,null,"Jakarta","Indonesia","M","1974-08-10","N"]
["Prodjo Handajo Sunjoto",null,null,"Jakarta","Indonesia","M","1941-08-17","SM"]
["Putri Kusuma Mardiono",null,null,"Jakarta","Indonesia","F",null,"N"]
["Romyus Permana",null,null,"Jakarta","Indonesia","M","1978-10-20","SBL"]
["Salim Lan Jaya Liem",null,null,"Jakarta","Indonesia","M","1971-06-01","SM","2024-06-26"]
["Sambodo Purnomo",null,null,"Jakarta","Indonesia","M","1973-07-03","SM"]
["Samuel Bob",null,null,"Jakarta","Indonesia","M","1974-01-04","SM"]
["Samuel Rusli",null,null,"Jakarta","Indonesia","M","1968-04-01","SM"]
["Shanti Tan",null,null,"Jakarta","Indonesia","F","1978-09-10","SBL"]
["Shu Shu",null,null,"Jakarta","Indonesia","F",null,"SBL"]
["Sri Wahyuswinta",null,null,"Jakarta","Indonesia","F","1969-04-04","SM"]
["Suryadi Jakin",null,null,"Jakarta","Indonesia","M","1947-04-04","SM"]
["Tan Kim Siong",null,null,"Jakarta","Indonesia","M","1970-11-09","SM"]
["Tan Siew Chang",null,null,"Jakarta","Indonesia","F","1967-01-13","SM"]
["Titi Salim",null,null,"Jakarta","Indonesia","M","1971-06-01","SBL"]
["Tommy Yakin",null,null,"Jakarta","Indonesia","M","1988-12-07","SM"]
["Wahyu Hadiningrat",null,null,"Jakarta","Indonesia","M","1974-05-06","N"]
["Wahyu Widada",null,null,"Jakarta","Indonesia","M","1969-09-11","SM"]
["Wisnu Hermawan",null,null,"Jakarta","Indonesia","M","1972-02-16","SM"]
["Yenni Rista",null,null,"Jakarta","Indonesia","F","1958-07-18","SM"]
["Yenny Wijaya",null,null,"Jakarta","Indonesia","F","1973-03-16","SM"]
["Yuldi Yusman",null,null,"Jakarta","Indonesia","M","1975-07-29","SM"]
["Yulia Gunawan",null,null,"Jakarta","Indonesia","F","1983-01-06","SM"]
["Listiana Handajani",null,null,"Jakarta","Indonesia","F","1954-04-26","N"]
["Almahyra Cyrilla Sastroisvara",null,null,"Jakarta","Indonesia","F"]

{"sheet":"Wisnu Hermawan","index":3,"n_rows":40,"n_cols":4,"rows_kept":40,"cut":false,"hidden":false,"merged":[]}
[]
[]
["Invoice: 55H-02406-GM11"]
["                  23.09.2024"]
[null,null,"Treatment by"]
[null,null,"Dr. Roland Backhaus"]
[]
[]
["Mr. Wisnu Hermawan"]
["Jakarta"]
["Indonesia"]
[]
[]
["Description","Qty","Price","Amount"]
["Patient: Wisnu Hermawan, M, 16.02.1972"]
[]
[null,null,{"$f":"IFERROR(VLOOKUP(A17,'Services-Produits'!$A$1:$B$2000,2,FALSE),\"\")","v":""},{"$f":"IFERROR(B17*C17,\"\")","v":""}]
[null,null,{"$f":"IFERROR(VLOOKUP(A18,'Services-Produits'!$A$1:$B$2000,2,FALSE),\"\")","v":""},{"$f":"IFERROR(B18*C18,\"\")","v":""}]
[null,null,{"$f":"IFERROR(VLOOKUP(A19,'Services-Produits'!$A$1:$B$2000,2,FALSE),\"\")","v":""},""]
[null,null,{"$f":"IFERROR(VLOOKUP(A20,'Services-Produits'!$A$1:$B$2000,2,FALSE),\"\")","v":""},""]
[null,null,{"$f":"IFERROR(VLOOKUP(A21,'Services-Produits'!$A$1:$B$2000,2,FALSE),\"\")","v":""},""]
[null,null,{"$f":"IFERROR(VLOOKUP(A22,'Services-Produits'!$A$1:$B$2000,2,FALSE),\"\")","v":""},""]
[null,null,{"$f":"IFERROR(VLOOKUP(A23,'Services-Produits'!$A$1:$B$2000,2,FALSE),\"\")","v":""},""]
[null,null,{"$f":"IFERROR(VLOOKUP(A24,'Services-Produits'!$A$1:$B$2000,2,FALSE),\"\")","v":""},""]
[null,null,{"$f":"IFERROR(VLOOKUP(A25,'Services-Produits'!$A$1:$B$2000,2,FALSE),\"\")","v":""},""]
[null,null,{"$f":"IFERROR(VLOOKUP(A26,'Services-Produits'!$A$1:$B$2000,2,FALSE),\"\")","v":""},""]
[null,null,{"$f":"IFERROR(VLOOKUP(A27,'Services-Produits'!$A$1:$B$2000,2,FALSE),\"\")","v":""},""]
[null,null,{"$f":"IFERROR(VLOOKUP(A28,'Services-Produits'!$A$1:$B$2000,2,FALSE),\"\")","v":""},""]
[null,null,{"$f":"IFERROR(VLOOKUP(A29,'Services-Produits'!$A$1:$B$2000,2,FALSE),\"\")","v":""},""]
[null,null,{"$f":"IFERROR(VLOOKUP(A30,'Services-Produits'!$A$1:$B$2000,2,FALSE),\"\")","v":""},""]
[null,null,{"$f":"IFERROR(VLOOKUP(A31,'Services-Produits'!$A$1:$B$2000,2,FALSE),\"\")","v":""},""]
[null,null,{"$f":"IFERROR(VLOOKUP(A32,'Services-Produits'!$A$1:$B$2000,2,FALSE),\"\")","v":""},""]
[null,null,{"$f":"IFERROR(VLOOKUP(A33,'Services-Produits'!$A$1:$B$2000,2,FALSE),\"\")","v":""},""]
[null,null,{"$f":"IFERROR(VLOOKUP(A34,'Services-Produits'!$A$1:$B$2000,2,FALSE),\"\")","v":""},""]
[null,null,{"$f":"IFERROR(VLOOKUP(A35,'Services-Produits'!$A$1:$B$2000,2,FALSE),\"\")","v":""},""]
[null,null,{"$f":"IFERROR(VLOOKUP(A36,'Services-Produits'!$A$1:$B$2000,2,FALSE),\"\")","v":""},""]
[null,null,{"$f":"IFERROR(VLOOKUP(A37,'Services-Produits'!$A$1:$B$2000,2,FALSE),\"\")","v":""},""]
["Total in CHF",null,null,{"$f":"SUM(D17:D37)","v":0}]
[]
["Thank you very much for your trust!"]

{"sheet":"Wahyu Hadiningrat","index":4,"n_rows":40,"n_cols":4,"rows_kept":40,"cut":false,"hidden":false,"merged":[]}
[]
[]
["Invoice: 55H-02406-GM11"]
["                  23.09.2024"]
[null,null,"Treatment by"]
[null,null,"Dr. Roland Backhaus"]
[]
[]
["Mr. Wahyu Hadiningrat"]
["Jakarta"]
["Indonesia"]
[]
[]
["Description","Qty","Price","Amount"]
["Patient: Wahyu Hadiningrat, M, 06.05.1974"]
[]
[null,null,{"$f":"IFERROR(VLOOKUP(A17,'Services-Produits'!$A$1:$B$2000,2,FALSE),\"\")","v":""},{"$f":"IFERROR(B17*C17,\"\")","v":""}]
[null,null,{"$f":"IFERROR(VLOOKUP(A18,'Services-Produits'!$A$1:$B$2000,2,FALSE),\"\")","v":""},{"$f":"IFERROR(B18*C18,\"\")","v":""}]
[null,null,{"$f":"IFERROR(VLOOKUP(A19,'Services-Produits'!$A$1:$B$2000,2,FALSE),\"\")","v":""},""]
[null,null,{"$f":"IFERROR(VLOOKUP(A20,'Services-Produits'!$A$1:$B$2000,2,FALSE),\"\")","v":""},""]
[null,null,{"$f":"IFERROR(VLOOKUP(A21,'Services-Produits'!$A$1:$B$2000,2,FALSE),\"\")","v":""},""]
[null,null,{"$f":"IFERROR(VLOOKUP(A22,'Services-Produits'!$A$1:$B$2000,2,FALSE),\"\")","v":""},""]
[null,null,{"$f":"IFERROR(VLOOKUP(A23,'Services-Produits'!$A$1:$B$2000,2,FALSE),\"\")","v":""},""]
[null,null,{"$f":"IFERROR(VLOOKUP(A24,'Services-Produits'!$A$1:$B$2000,2,FALSE),\"\")","v":""},""]
[null,null,{"$f":"IFERROR(VLOOKUP(A25,'Services-Produits'!$A$1:$B$2000,2,FALSE),\"\")","v":""},""]
[null,null,{"$f":"IFERROR(VLOOKUP(A26,'Services-Produits'!$A$1:$B$2000,2,FALSE),\"\")","v":""},""]
[null,null,{"$f":"IFERROR(VLOOKUP(A27,'Services-Produits'!$A$1:$B$2000,2,FALSE),\"\")","v":""},""]
[null,null,{"$f":"IFERROR(VLOOKUP(A28,'Services-Produits'!$A$1:$B$2000,2,FALSE),\"\")","v":""},""]
[null,null,{"$f":"IFERROR(VLOOKUP(A29,'Services-Produits'!$A$1:$B$2000,2,FALSE),\"\")","v":""},""]
[null,null,{"$f":"IFERROR(VLOOKUP(A30,'Services-Produits'!$A$1:$B$2000,2,FALSE),\"\")","v":""},""]
[null,null,{"$f":"IFERROR(VLOOKUP(A31,'Services-Produits'!$A$1:$B$2000,2,FALSE),\"\")","v":""},""]
[null,null,{"$f":"IFERROR(VLOOKUP(A32,'Services-Produits'!$A$1:$B$2000,2,FALSE),\"\")","v":""},""]
[null,null,{"$f":"IFERROR(VLOOKUP(A33,'Services-Produits'!$A$1:$B$2000,2,FALSE),\"\")","v":""},""]
[null,null,{"$f":"IFERROR(VLOOKUP(A34,'Services-Produits'!$A$1:$B$2000,2,FALSE),\"\")","v":""},""]
[null,null,{"$f":"IFERROR(VLOOKUP(A35,'Services-Produits'!$A$1:$B$2000,2,FALSE),\"\")","v":""},""]
[null,null,{"$f":"IFERROR(VLOOKUP(A36,'Services-Produits'!$A$1:$B$2000,2,FALSE),\"\")","v":""},""]
[null,null,{"$f":"IFERROR(VLOOKUP(A37,'Services-Produits'!$A$1:$B$2000,2,FALSE),\"\")","v":""},""]
["Total in CHF",null,null,{"$f":"SUM(D17:D37)","v":0}]
[]
["Thank you very much for your trust!"]

{"sheet":"Agus Andriyanto","index":5,"n_rows":40,"n_cols":4,"rows_kept":40,"cut":false,"hidden":false,"merged":[]}
[]
[]
["Invoice: 55H-02406-GM11"]
["                  23.09.2024"]
[null,null,"Treatment by"]
[null,null,"Dr. Roland Backhaus"]
[]
[]
["Mr. Agus Andriyanto"]
["Jakarta"]
["Indonesia"]
[]
[]
["Description","Qty","Price","Amount"]
["Patient: Agus Andriyanto, M, 16.02.1967"]
[]
["Gut Microbiome - 1 transplants",1,{"$f":"IFERROR(VLOOKUP(A17,'Services-Produits'!$A$1:$B$2000,2,FALSE),\"\")","v":7199.75},{"$f":"IFERROR(B17*C17,\"\")","v":7199.75}]
["Tadalafil-Mepha 2.5 mg",8,{"$f":"IFERROR(VLOOKUP(A18,'Services-Produits'!$A$1:$B$2000,2,FALSE),\"\")","v":115},{"$f":"IFERROR(B18*C18,\"\")","v":920}]
[" Respiphage",1,{"$f":"IFERROR(VLOOKUP(A19,'Services-Produits'!$A$1:$B$2000,2,FALSE),\"\")","v":0},{"$f":"IFERROR(B19*C19,\"\")","v":0}]
["Curcumin 150 mg",3,{"$f":"IFERROR(VLOOKUP(A20,'Services-Produits'!$A$1:$B$2000,2,FALSE),\"\")","v":229.2},687.59999999999991]
["Bosvene Akba",6,{"$f":"IFERROR(VLOOKUP(A21,'Services-Produits'!$A$1:$B$2000,2,FALSE),\"\")","v":215.11},1290.6600000000001]
[null,null,{"$f":"IFERROR(VLOOKUP(A22,'Services-Produits'!$A$1:$B$2000,2,FALSE),\"\")","v":""},""]
[null,null,{"$f":"IFERROR(VLOOKUP(A23,'Services-Produits'!$A$1:$B$2000,2,FALSE),\"\")","v":""},""]
[null,null,{"$f":"IFERROR(VLOOKUP(A24,'Services-Produits'!$A$1:$B$2000,2,FALSE),\"\")","v":""},""]
[null,null,{"$f":"IFERROR(VLOOKUP(A25,'Services-Produits'!$A$1:$B$2000,2,FALSE),\"\")","v":""},""]
[null,null,{"$f":"IFERROR(VLOOKUP(A26,'Services-Produits'!$A$1:$B$2000,2,FALSE),\"\")","v":""},""]
[null,null,{"$f":"IFERROR(VLOOKUP(A27,'Services-Produits'!$A$1:$B$2000,2,FALSE),\"\")","v":""},""]
[null,null,{"$f":"IFERROR(VLOOKUP(A28,'Services-Produits'!$A$1:$B$2000,2,FALSE),\"\")","v":""},""]
[null,null,{"$f":"IFERROR(VLOOKUP(A29,'Services-Produits'!$A$1:$B$2000,2,FALSE),\"\")","v":""},""]
[null,null,{"$f":"IFERROR(VLOOKUP(A30,'Services-Produits'!$A$1:$B$2000,2,FALSE),\"\")","v":""},""]
[null,null,{"$f":"IFERROR(VLOOKUP(A31,'Services-Produits'!$A$1:$B$2000,2,FALSE),\"\")","v":""},""]
[null,null,{"$f":"IFERROR(VLOOKUP(A32,'Services-Produits'!$A$1:$B$2000,2,FALSE),\"\")","v":""},""]
[null,null,{"$f":"IFERROR(VLOOKUP(A33,'Services-Produits'!$A$1:$B$2000,2,FALSE),\"\")","v":""},""]
[null,null,{"$f":"IFERROR(VLOOKUP(A34,'Services-Produits'!$A$1:$B$2000,2,FALSE),\"\")","v":""},""]
[null,null,{"$f":"IFERROR(VLOOKUP(A35,'Services-Produits'!$A$1:$B$2000,2,FALSE),\"\")","v":""},""]
[null,null,{"$f":"IFERROR(VLOOKUP(A36,'Services-Produits'!$A$1:$B$2000,2,FALSE),\"\")","v":""},""]
[null,null,{"$f":"IFERROR(VLOOKUP(A37,'Services-Produits'!$A$1:$B$2000,2,FALSE),\"\")","v":""},""]
["Total in CHF",null,null,{"$f":"SUM(D17:D37)","v":10098.01}]
[]
["Thank you very much for your trust!"]

{"sheet":"Putri Kusuma Mardiono","index":6,"n_rows":40,"n_cols":4,"rows_kept":40,"cut":false,"hidden":false,"merged":[]}
[]
[]
["Invoice: 55H-02406-GM11"]
["                  23.09.2024"]
[null,null,"Treatment by"]
[null,null,"Dr. Roland Backhaus"]
[]
[]
["Mrs. Putri Kusuma Mardiono"]
["Jakarta"]
["Indonesia"]
[]
[]
["Description","Qty","Price","Amount"]
["Patient: Putri Kusuma Mardiono, F, "]
[]
["Gut Microbiome 2 transplants",1,{"$f":"IFERROR(VLOOKUP(A17,'Services-Produits'!$A$1:$B$2000,2,FALSE),\"\")","v":14399.5},{"$f":"IFERROR(B17*C17,\"\")","v":14399.5}]
["Discount 15%",null,null,{"$f":"-D17*0.15","v":-2159.9249999999997}]
["Oliphenolia",6,{"$f":"IFERROR(VLOOKUP(A19,'Services-Produits'!$A$1:$B$2000,2,FALSE),\"\")","v":183.51},{"$f":"IFERROR(B19*C19,\"\")","v":1101.06}]
["Wegovy 0.5mg",3,{"$f":"IFERROR(VLOOKUP(A20,'Services-Produits'!$A$1:$B$2000,2,FALSE),\"\")","v":188.15},564.45000000000005]
["Curcumin 150 mg",5,{"$f":"IFERROR(VLOOKUP(A21,'Services-Produits'!$A$1:$B$2000,2,FALSE),\"\")","v":229.2},1146]
[null,null,{"$f":"IFERROR(VLOOKUP(A22,'Services-Produits'!$A$1:$B$2000,2,FALSE),\"\")","v":""},""]
[null,null,{"$f":"IFERROR(VLOOKUP(A23,'Services-Produits'!$A$1:$B$2000,2,FALSE),\"\")","v":""},""]
[null,null,{"$f":"IFERROR(VLOOKUP(A24,'Services-Produits'!$A$1:$B$2000,2,FALSE),\"\")","v":""},""]
[null,null,{"$f":"IFERROR(VLOOKUP(A25,'Services-Produits'!$A$1:$B$2000,2,FALSE),\"\")","v":""},""]
[null,null,{"$f":"IFERROR(VLOOKUP(A26,'Services-Produits'!$A$1:$B$2000,2,FALSE),\"\")","v":""},""]
[null,null,{"$f":"IFERROR(VLOOKUP(A27,'Services-Produits'!$A$1:$B$2000,2,FALSE),\"\")","v":""},""]
[null,null,{"$f":"IFERROR(VLOOKUP(A28,'Services-Produits'!$A$1:$B$2000,2,FALSE),\"\")","v":""},""]
[null,null,{"$f":"IFERROR(VLOOKUP(A29,'Services-Produits'!$A$1:$B$2000,2,FALSE),\"\")","v":""},""]
[null,null,{"$f":"IFERROR(VLOOKUP(A30,'Services-Produits'!$A$1:$B$2000,2,FALSE),\"\")","v":""},""]
[null,null,{"$f":"IFERROR(VLOOKUP(A31,'Services-Produits'!$A$1:$B$2000,2,FALSE),\"\")","v":""},""]
[null,null,{"$f":"IFERROR(VLOOKUP(A32,'Services-Produits'!$A$1:$B$2000,2,FALSE),\"\")","v":""},""]
[null,null,{"$f":"IFERROR(VLOOKUP(A33,'Services-Produits'!$A$1:$B$2000,2,FALSE),\"\")","v":""},""]
[null,null,{"$f":"IFERROR(VLOOKUP(A34,'Services-Produits'!$A$1:$B$2000,2,FALSE),\"\")","v":""},""]
[null,null,{"$f":"IFERROR(VLOOKUP(A35,'Services-Produits'!$A$1:$B$2000,2,FALSE),\"\")","v":""},""]
[null,null,{"$f":"IFERROR(VLOOKUP(A36,'Services-Produits'!$A$1:$B$2000,2,FALSE),\"\")","v":""},""]
[null,null,{"$f":"IFERROR(VLOOKUP(A37,'Services-Produits'!$A$1:$B$2000,2,FALSE),\"\")","v":""},""]
["Total in CHF",null,null,{"$f":"SUM(D17:D37)","v":15051.085000000001}]
[]
["Thank you very much for your trust!"]

{"sheet":"Muhamad Mardiono","index":7,"n_rows":40,"n_cols":4,"rows_kept":40,"cut":false,"hidden":false,"merged":[]}
[]
[]
["Invoice: 55H-02406-GM11"]
["                  23.09.2024"]
[null,null,"Treatment by"]
[null,null,"Dr. Roland Backhaus"]
[]
[]
["Mr. Muhamad Mardiono"]
["Jakarta"]
["Indonesia"]
[]
[]
["Description","Qty","Price","Amount"]
["Patient: Muhamad Mardiono, M, 11.07.1957"]
[]
["Gut Microbiome 4 transplants",1,{"$f":"IFERROR(VLOOKUP(A17,'Services-Produits'!$A$1:$B$2000,2,FALSE),\"\")","v":28799},{"$f":"IFERROR(B17*C17,\"\")","v":28799}]
["Discount 15%",null,null,{"$f":"D17*Discount15","v":-4319.8499999999995}]
["Protokol Lösung 1 Infusion",1,{"$f":"IFERROR(VLOOKUP(A19,'Services-Produits'!$A$1:$B$2000,2,FALSE),\"\")","v":0},{"$f":"IFERROR(B19*C19,\"\")","v":0}]
["Tadalafil-Mepha 2.5 mg",6,{"$f":"IFERROR(VLOOKUP(A20,'Services-Produits'!$A$1:$B$2000,2,FALSE),\"\")","v":115},690]
["Hypericin 5 mg",3,{"$f":"IFERROR(VLOOKUP(A21,'Services-Produits'!$A$1:$B$2000,2,FALSE),\"\")","v":218.8},656.40000000000009]
[null,null,{"$f":"IFERROR(VLOOKUP(A22,'Services-Produits'!$A$1:$B$2000,2,FALSE),\"\")","v":""},""]
[null,null,{"$f":"IFERROR(VLOOKUP(A23,'Services-Produits'!$A$1:$B$2000,2,FALSE),\"\")","v":""},""]
[null,null,{"$f":"IFERROR(VLOOKUP(A24,'Services-Produits'!$A$1:$B$2000,2,FALSE),\"\")","v":""},""]
[null,null,{"$f":"IFERROR(VLOOKUP(A25,'Services-Produits'!$A$1:$B$2000,2,FALSE),\"\")","v":""},""]
[null,null,{"$f":"IFERROR(VLOOKUP(A26,'Services-Produits'!$A$1:$B$2000,2,FALSE),\"\")","v":""},""]
[null,null,{"$f":"IFERROR(VLOOKUP(A27,'Services-Produits'!$A$1:$B$2000,2,FALSE),\"\")","v":""},""]
[null,null,{"$f":"IFERROR(VLOOKUP(A28,'Services-Produits'!$A$1:$B$2000,2,FALSE),\"\")","v":""},""]
[null,null,{"$f":"IFERROR(VLOOKUP(A29,'Services-Produits'!$A$1:$B$2000,2,FALSE),\"\")","v":""},""]
[null,null,{"$f":"IFERROR(VLOOKUP(A30,'Services-Produits'!$A$1:$B$2000,2,FALSE),\"\")","v":""},""]
[null,null,{"$f":"IFERROR(VLOOKUP(A31,'Services-Produits'!$A$1:$B$2000,2,FALSE),\"\")","v":""},""]
[null,null,{"$f":"IFERROR(VLOOKUP(A32,'Services-Produits'!$A$1:$B$2000,2,FALSE),\"\")","v":""},""]
[null,null,{"$f":"IFERROR(VLOOKUP(A33,'Services-Produits'!$A$1:$B$2000,2,FALSE),\"\")","v":""},""]
[null,null,{"$f":"IFERROR(VLOOKUP(A34,'Services-Produits'!$A$1:$B$2000,2,FALSE),\"\")","v":""},""]
[null,null,{"$f":"IFERROR(VLOOKUP(A35,'Services-Produits'!$A$1:$B$2000,2,FALSE),\"\")","v":""},""]
[null,null,{"$f":"IFERROR(VLOOKUP(A36,'Services-Produits'!$A$1:$B$2000,2,FALSE),\"\")","v":""},""]
[null,null,{"$f":"IFERROR(VLOOKUP(A37,'Services-Produits'!$A$1:$B$2000,2,FALSE),\"\")","v":""},""]
["Total in CHF",null,null,{"$f":"SUM(D17:D37)","v":25825.550000000003}]
[]
["Thank you very much for your trust!"]

{"sheet":"Fajar Hadi Prabowo","index":8,"n_rows":40,"n_cols":4,"rows_kept":40,"cut":false,"hidden":false,"merged":[]}
[]
[]
["Invoice: 55H-02406-GM11"]
["                  23.09.2024"]
[null,null,"Treatment by"]
[null,null,"Dr. Roland Backhaus"]
[]
[]
["Mr. Fajar Hadi Prabowo"]
["Jakarta"]
["Indonesia"]
[]
[]
["Description","Qty","Price","Amount"]
["Patient: Fajar Hadi Prabowo, M, 14.11.1989"]
[]
[null,null,{"$f":"IFERROR(VLOOKUP(A17,'Services-Produits'!$A$1:$B$2000,2,FALSE),\"\")","v":""},{"$f":"IFERROR(B17*C17,\"\")","v":""}]
["Gut Microbiome 4 transplants",1,{"$f":"IFERROR(VLOOKUP(A18,'Services-Produits'!$A$1:$B$2000,2,FALSE),\"\")","v":28799},{"$f":"IFERROR(B18*C18,\"\")","v":28799}]
["Phenylalanine",1,{"$f":"IFERROR(VLOOKUP(A19,'Services-Produits'!$A$1:$B$2000,2,FALSE),\"\")","v":106.4},106.4]
["Consultation",1,{"$f":"IFERROR(VLOOKUP(A20,'Services-Produits'!$A$1:$B$2000,2,FALSE),\"\")","v":1800},1800]
[null,null,{"$f":"IFERROR(VLOOKUP(A21,'Services-Produits'!$A$1:$B$2000,2,FALSE),\"\")","v":""},""]
[null,null,{"$f":"IFERROR(VLOOKUP(A22,'Services-Produits'!$A$1:$B$2000,2,FALSE),\"\")","v":""},""]
[null,null,{"$f":"IFERROR(VLOOKUP(A23,'Services-Produits'!$A$1:$B$2000,2,FALSE),\"\")","v":""},""]
[null,null,{"$f":"IFERROR(VLOOKUP(A24,'Services-Produits'!$A$1:$B$2000,2,FALSE),\"\")","v":""},""]
[null,null,{"$f":"IFERROR(VLOOKUP(A25,'Services-Produits'!$A$1:$B$2000,2,FALSE),\"\")","v":""},""]
[null,null,{"$f":"IFERROR(VLOOKUP(A26,'Services-Produits'!$A$1:$B$2000,2,FALSE),\"\")","v":""},""]
[null,null,{"$f":"IFERROR(VLOOKUP(A27,'Services-Produits'!$A$1:$B$2000,2,FALSE),\"\")","v":""},""]
[null,null,{"$f":"IFERROR(VLOOKUP(A28,'Services-Produits'!$A$1:$B$2000,2,FALSE),\"\")","v":""},""]
[null,null,{"$f":"IFERROR(VLOOKUP(A29,'Services-Produits'!$A$1:$B$2000,2,FALSE),\"\")","v":""},""]
[null,null,{"$f":"IFERROR(VLOOKUP(A30,'Services-Produits'!$A$1:$B$2000,2,FALSE),\"\")","v":""},""]
[null,null,{"$f":"IFERROR(VLOOKUP(A31,'Services-Produits'!$A$1:$B$2000,2,FALSE),\"\")","v":""},""]
[null,null,{"$f":"IFERROR(VLOOKUP(A32,'Services-Produits'!$A$1:$B$2000,2,FALSE),\"\")","v":""},""]
[null,null,{"$f":"IFERROR(VLOOKUP(A33,'Services-Produits'!$A$1:$B$2000,2,FALSE),\"\")","v":""},""]
[null,null,{"$f":"IFERROR(VLOOKUP(A34,'Services-Produits'!$A$1:$B$2000,2,FALSE),\"\")","v":""},""]
[null,null,{"$f":"IFERROR(VLOOKUP(A35,'Services-Produits'!$A$1:$B$2000,2,FALSE),\"\")","v":""},""]
[null,null,{"$f":"IFERROR(VLOOKUP(A36,'Services-Produits'!$A$1:$B$2000,2,FALSE),\"\")","v":""},""]
[null,null,{"$f":"IFERROR(VLOOKUP(A37,'Services-Produits'!$A$1:$B$2000,2,FALSE),\"\")","v":""},""]
["Total in CHF",null,null,{"$f":"SUM(D17:D37)","v":30705.4}]
[]
["Thank you very much for your trust!"]

{"sheet":"Murat Ismael","index":9,"n_rows":40,"n_cols":4,"rows_kept":40,"cut":false,"hidden":false,"merged":[]}
[]
[]
["Invoice: 55H-02406-GM11"]
["                  23.09.2024"]
[null,null,"Treatment by"]
[null,null,"Dr. Roland Backhaus"]
[]
[]
["Mr. Murat Ismael"]
["Jakarta"]
["Indonesia"]
[]
[]
["Description","Qty","Price","Amount"]
["Patient: Murat Ismael, M, 11.09.1961"]
[]
["Gut Microbiome 4 transplants",1,{"$f":"IFERROR(VLOOKUP(A17,'Services-Produits'!$A$1:$B$2000,2,FALSE),\"\")","v":28799},{"$f":"IFERROR(B17*C17,\"\")","v":28799}]
["Antioxidant Mix",1,{"$f":"IFERROR(VLOOKUP(A18,'Services-Produits'!$A$1:$B$2000,2,FALSE),\"\")","v":410},{"$f":"IFERROR(B18*C18,\"\")","v":410}]
[null,null,{"$f":"IFERROR(VLOOKUP(A19,'Services-Produits'!$A$1:$B$2000,2,FALSE),\"\")","v":""},""]
[null,null,{"$f":"IFERROR(VLOOKUP(A20,'Services-Produits'!$A$1:$B$2000,2,FALSE),\"\")","v":""},""]
[null,null,{"$f":"IFERROR(VLOOKUP(A21,'Services-Produits'!$A$1:$B$2000,2,FALSE),\"\")","v":""},""]
[null,null,{"$f":"IFERROR(VLOOKUP(A22,'Services-Produits'!$A$1:$B$2000,2,FALSE),\"\")","v":""},""]
[null,null,{"$f":"IFERROR(VLOOKUP(A23,'Services-Produits'!$A$1:$B$2000,2,FALSE),\"\")","v":""},""]
[null,null,{"$f":"IFERROR(VLOOKUP(A24,'Services-Produits'!$A$1:$B$2000,2,FALSE),\"\")","v":""},""]
[null,null,{"$f":"IFERROR(VLOOKUP(A25,'Services-Produits'!$A$1:$B$2000,2,FALSE),\"\")","v":""},""]
[null,null,{"$f":"IFERROR(VLOOKUP(A26,'Services-Produits'!$A$1:$B$2000,2,FALSE),\"\")","v":""},""]
[null,null,{"$f":"IFERROR(VLOOKUP(A27,'Services-Produits'!$A$1:$B$2000,2,FALSE),\"\")","v":""},""]
[null,null,{"$f":"IFERROR(VLOOKUP(A28,'Services-Produits'!$A$1:$B$2000,2,FALSE),\"\")","v":""},""]
[null,null,{"$f":"IFERROR(VLOOKUP(A29,'Services-Produits'!$A$1:$B$2000,2,FALSE),\"\")","v":""},""]
[null,null,{"$f":"IFERROR(VLOOKUP(A30,'Services-Produits'!$A$1:$B$2000,2,FALSE),\"\")","v":""},""]
[null,null,{"$f":"IFERROR(VLOOKUP(A31,'Services-Produits'!$A$1:$B$2000,2,FALSE),\"\")","v":""},""]
[null,null,{"$f":"IFERROR(VLOOKUP(A32,'Services-Produits'!$A$1:$B$2000,2,FALSE),\"\")","v":""},""]
[null,null,{"$f":"IFERROR(VLOOKUP(A33,'Services-Produits'!$A$1:$B$2000,2,FALSE),\"\")","v":""},""]
[null,null,{"$f":"IFERROR(VLOOKUP(A34,'Services-Produits'!$A$1:$B$2000,2,FALSE),\"\")","v":""},""]
[null,null,{"$f":"IFERROR(VLOOKUP(A35,'Services-Produits'!$A$1:$B$2000,2,FALSE),\"\")","v":""},""]
[null,null,{"$f":"IFERROR(VLOOKUP(A36,'Services-Produits'!$A$1:$B$2000,2,FALSE),\"\")","v":""},""]
[null,null,{"$f":"IFERROR(VLOOKUP(A37,'Services-Produits'!$A$1:$B$2000,2,FALSE),\"\")","v":""},""]
["Total in CHF",null,null,{"$f":"SUM(D17:D37)","v":29209}]
[]
["Thank you very much for your trust!"]

{"sheet":"Ong Hang Ling","index":10,"n_rows":40,"n_cols":4,"rows_kept":40,"cut":false,"hidden":false,"merged":[]}
[]
[]
["Invoice: 55H-02406-GM11"]
["                  23.09.2024"]
[null,null,"Treatment by"]
[null,null,"Dr. Roland Backhaus"]
[]
[]
["Mr. Ong Hang Ling"]
["Jakarta"]
["Indonesia"]
[]
[]
["Description","Qty","Price","Amount"]
["Patient: Ong Hang Ling, M, 12.12.1938"]
[]
["Gut Microbiome 4 transplants",1,{"$f":"IFERROR(VLOOKUP(A17,'Services-Produits'!$A$1:$B$2000,2,FALSE),\"\")","v":28799},{"$f":"IFERROR(B17*C17,\"\")","v":28799}]
["Phago SES",2,{"$f":"IFERROR(VLOOKUP(A18,'Services-Produits'!$A$1:$B$2000,2,FALSE),\"\")","v":0},{"$f":"IFERROR(B18*C18,\"\")","v":0}]
["Phago PYO",1,{"$f":"IFERROR(VLOOKUP(A19,'Services-Produits'!$A$1:$B$2000,2,FALSE),\"\")","v":0},0]
["Cerebrolysin 5 ml",1,{"$f":"IFERROR(VLOOKUP(A20,'Services-Produits'!$A$1:$B$2000,2,FALSE),\"\")","v":63.8},63.8]
["Cerebrolysin 10 ml",4,{"$f":"IFERROR(VLOOKUP(A21,'Services-Produits'!$A$1:$B$2000,2,FALSE),\"\")","v":99.6},398.4]
["Phenylalanine",5,{"$f":"IFERROR(VLOOKUP(A22,'Services-Produits'!$A$1:$B$2000,2,FALSE),\"\")","v":106.4},532]
["Gedächtnis Infusion",5,{"$f":"IFERROR(VLOOKUP(A23,'Services-Produits'!$A$1:$B$2000,2,FALSE),\"\")","v":378},1890]
["Mitochondrien Infusion",2,{"$f":"IFERROR(VLOOKUP(A24,'Services-Produits'!$A$1:$B$2000,2,FALSE),\"\")","v":428.7},857.4]
["Resveratrol",5,{"$f":"IFERROR(VLOOKUP(A25,'Services-Produits'!$A$1:$B$2000,2,FALSE),\"\")","v":178},890]
["Hypericin 5 mg",2,{"$f":"IFERROR(VLOOKUP(A26,'Services-Produits'!$A$1:$B$2000,2,FALSE),\"\")","v":218.8},437.6]
["Nicotiamide",5,{"$f":"IFERROR(VLOOKUP(A27,'Services-Produits'!$A$1:$B$2000,2,FALSE),\"\")","v":47},235]
["Shoga Öl",2,{"$f":"IFERROR(VLOOKUP(A28,'Services-Produits'!$A$1:$B$2000,2,FALSE),\"\")","v":670},1340]
["Curcumin 150 mg",4,{"$f":"IFERROR(VLOOKUP(A29,'Services-Produits'!$A$1:$B$2000,2,FALSE),\"\")","v":229.2},916.8]
["Vit D3",1,{"$f":"IFERROR(VLOOKUP(A30,'Services-Produits'!$A$1:$B$2000,2,FALSE),\"\")","v":37},37]
[null,null,{"$f":"IFERROR(VLOOKUP(A31,'Services-Produits'!$A$1:$B$2000,2,FALSE),\"\")","v":""},""]
[null,null,{"$f":"IFERROR(VLOOKUP(A32,'Services-Produits'!$A$1:$B$2000,2,FALSE),\"\")","v":""},""]
[null,null,{"$f":"IFERROR(VLOOKUP(A33,'Services-Produits'!$A$1:$B$2000,2,FALSE),\"\")","v":""},""]
[null,null,{"$f":"IFERROR(VLOOKUP(A34,'Services-Produits'!$A$1:$B$2000,2,FALSE),\"\")","v":""},""]
[null,null,{"$f":"IFERROR(VLOOKUP(A35,'Services-Produits'!$A$1:$B$2000,2,FALSE),\"\")","v":""},""]
[null,null,{"$f":"IFERROR(VLOOKUP(A36,'Services-Produits'!$A$1:$B$2000,2,FALSE),\"\")","v":""},""]
[null,null,{"$f":"IFERROR(VLOOKUP(A37,'Services-Produits'!$A$1:$B$2000,2,FALSE),\"\")","v":""},""]
["Total in CHF",null,null,{"$f":"SUM(D17:D37)","v":36397.000000000007}]
[]
["Thank you very much for your trust!"]

{"sheet":"Peter Pramana","index":11,"n_rows":40,"n_cols":4,"rows_kept":40,"cut":false,"hidden":false,"merged":[]}
[]
[]
["Invoice: 55H-02406-GM11"]
["                  23.09.2024"]
[null,null,"Treatment by"]
[null,null,"Dr. Roland Backhaus"]
[]
[]
["Mr. Peter Pramana"]
["Jakarta"]
["Indonesia"]
[]
[]
["Description","Qty","Price","Amount"]
["Patient: Peter Pramana, M, 10.08.1974"]
[]
["Gut Microbiome 4 transplants",1,{"$f":"IFERROR(VLOOKUP(A17,'Services-Produits'!$A$1:$B$2000,2,FALSE),\"\")","v":28799},{"$f":"IFERROR(B17*C17,\"\")","v":28799}]
["NAD+",4,{"$f":"IFERROR(VLOOKUP(A18,'Services-Produits'!$A$1:$B$2000,2,FALSE),\"\")","v":219.66},{"$f":"IFERROR(B18*C18,\"\")","v":878.64}]
[null,null,{"$f":"IFERROR(VLOOKUP(A19,'Services-Produits'!$A$1:$B$2000,2,FALSE),\"\")","v":""},""]
[null,null,{"$f":"IFERROR(VLOOKUP(A20,'Services-Produits'!$A$1:$B$2000,2,FALSE),\"\")","v":""},""]
[null,null,{"$f":"IFERROR(VLOOKUP(A21,'Services-Produits'!$A$1:$B$2000,2,FALSE),\"\")","v":""},""]
[null,null,{"$f":"IFERROR(VLOOKUP(A22,'Services-Produits'!$A$1:$B$2000,2,FALSE),\"\")","v":""},""]
[null,null,{"$f":"IFERROR(VLOOKUP(A23,'Services-Produits'!$A$1:$B$2000,2,FALSE),\"\")","v":""},""]
[null,null,{"$f":"IFERROR(VLOOKUP(A24,'Services-Produits'!$A$1:$B$2000,2,FALSE),\"\")","v":""},""]
[null,null,{"$f":"IFERROR(VLOOKUP(A25,'Services-Produits'!$A$1:$B$2000,2,FALSE),\"\")","v":""},""]
[null,null,{"$f":"IFERROR(VLOOKUP(A26,'Services-Produits'!$A$1:$B$2000,2,FALSE),\"\")","v":""},""]
[null,null,{"$f":"IFERROR(VLOOKUP(A27,'Services-Produits'!$A$1:$B$2000,2,FALSE),\"\")","v":""},""]
[null,null,{"$f":"IFERROR(VLOOKUP(A28,'Services-Produits'!$A$1:$B$2000,2,FALSE),\"\")","v":""},""]
[null,null,{"$f":"IFERROR(VLOOKUP(A29,'Services-Produits'!$A$1:$B$2000,2,FALSE),\"\")","v":""},""]
[null,null,{"$f":"IFERROR(VLOOKUP(A30,'Services-Produits'!$A$1:$B$2000,2,FALSE),\"\")","v":""},""]
[null,null,{"$f":"IFERROR(VLOOKUP(A31,'Services-Produits'!$A$1:$B$2000,2,FALSE),\"\")","v":""},""]
[null,null,{"$f":"IFERROR(VLOOKUP(A32,'Services-Produits'!$A$1:$B$2000,2,FALSE),\"\")","v":""},""]
[null,null,{"$f":"IFERROR(VLOOKUP(A33,'Services-Produits'!$A$1:$B$2000,2,FALSE),\"\")","v":""},""]
[null,null,{"$f":"IFERROR(VLOOKUP(A34,'Services-Produits'!$A$1:$B$2000,2,FALSE),\"\")","v":""},""]
[null,null,{"$f":"IFERROR(VLOOKUP(A35,'Services-Produits'!$A$1:$B$2000,2,FALSE),\"\")","v":""},""]
[null,null,{"$f":"IFERROR(VLOOKUP(A36,'Services-Produits'!$A$1:$B$2000,2,FALSE),\"\")","v":""},""]
[null,null,{"$f":"IFERROR(VLOOKUP(A37,'Services-Produits'!$A$1:$B$2000,2,FALSE),\"\")","v":""},""]
["Total in CHF",null,null,{"$f":"SUM(D17:D37)","v":29677.64}]
[]
["Thank you very much for your trust!"]

{"sheet":"Andrea Wulandari Iravan","index":12,"n_rows":40,"n_cols":4,"rows_kept":40,"cut":false,"hidden":false,"merged":[]}
[]
[]
["Invoice: 55H-02406-GM11"]
["                  23.09.2024"]
[null,null,"Treatment by"]
[null,null,"Dr. Roland Backhaus"]
[]
[]
["Mrs. Andrea Wulandari Iravan"]
["Jakarta"]
["Indonesia"]
[]
[]
["Description","Qty","Price","Amount"]
["Patient: Andrea Wulandari Iravan, F, 07.08.1995"]
[]
["Gut Microbiome 4 transplants",1,{"$f":"IFERROR(VLOOKUP(A17,'Services-Produits'!$A$1:$B$2000,2,FALSE),\"\")","v":28799},{"$f":"IFERROR(B17*C17,\"\")","v":28799}]
["Phenylalanine",2,{"$f":"IFERROR(VLOOKUP(A18,'Services-Produits'!$A$1:$B$2000,2,FALSE),\"\")","v":106.4},{"$f":"IFERROR(B18*C18,\"\")","v":212.8}]
["Mitochondrien Infusion",1,{"$f":"IFERROR(VLOOKUP(A19,'Services-Produits'!$A$1:$B$2000,2,FALSE),\"\")","v":428.7},428.7]
["Hydroxiprolin 2 g",4,{"$f":"IFERROR(VLOOKUP(A20,'Services-Produits'!$A$1:$B$2000,2,FALSE),\"\")","v":68.900000000000006},275.60000000000002]
["Selenase",1,{"$f":"IFERROR(VLOOKUP(A21,'Services-Produits'!$A$1:$B$2000,2,FALSE),\"\")","v":175},175]
["Hypericin 5 mg",1,{"$f":"IFERROR(VLOOKUP(A22,'Services-Produits'!$A$1:$B$2000,2,FALSE),\"\")","v":218.8},218.8]
["Tadalafil-Mepha 2.5 mg",4,{"$f":"IFERROR(VLOOKUP(A23,'Services-Produits'!$A$1:$B$2000,2,FALSE),\"\")","v":115},460]
["Vitarubine",1,{"$f":"IFERROR(VLOOKUP(A24,'Services-Produits'!$A$1:$B$2000,2,FALSE),\"\")","v":0},0]
[null,null,{"$f":"IFERROR(VLOOKUP(A25,'Services-Produits'!$A$1:$B$2000,2,FALSE),\"\")","v":""},""]
[null,null,{"$f":"IFERROR(VLOOKUP(A26,'Services-Produits'!$A$1:$B$2000,2,FALSE),\"\")","v":""},""]
[null,null,{"$f":"IFERROR(VLOOKUP(A27,'Services-Produits'!$A$1:$B$2000,2,FALSE),\"\")","v":""},""]
[null,null,{"$f":"IFERROR(VLOOKUP(A28,'Services-Produits'!$A$1:$B$2000,2,FALSE),\"\")","v":""},""]
[null,null,{"$f":"IFERROR(VLOOKUP(A29,'Services-Produits'!$A$1:$B$2000,2,FALSE),\"\")","v":""},""]
[null,null,{"$f":"IFERROR(VLOOKUP(A30,'Services-Produits'!$A$1:$B$2000,2,FALSE),\"\")","v":""},""]
[null,null,{"$f":"IFERROR(VLOOKUP(A31,'Services-Produits'!$A$1:$B$2000,2,FALSE),\"\")","v":""},""]
[null,null,{"$f":"IFERROR(VLOOKUP(A32,'Services-Produits'!$A$1:$B$2000,2,FALSE),\"\")","v":""},""]
[null,null,{"$f":"IFERROR(VLOOKUP(A33,'Services-Produits'!$A$1:$B$2000,2,FALSE),\"\")","v":""},""]
[null,null,{"$f":"IFERROR(VLOOKUP(A34,'Services-Produits'!$A$1:$B$2000,2,FALSE),\"\")","v":""},""]
[null,null,{"$f":"IFERROR(VLOOKUP(A35,'Services-Produits'!$A$1:$B$2000,2,FALSE),\"\")","v":""},""]
[null,null,{"$f":"IFERROR(VLOOKUP(A36,'Services-Produits'!$A$1:$B$2000,2,FALSE),\"\")","v":""},""]
[null,null,{"$f":"IFERROR(VLOOKUP(A37,'Services-Produits'!$A$1:$B$2000,2,FALSE),\"\")","v":""},""]
["Total in CHF",null,null,{"$f":"SUM(D17:D37)","v":30569.899999999998}]
[]
["Thank you very much for your trust!"]

{"sheet":"Darmo Pranoto Soenjoto","index":13,"n_rows":40,"n_cols":4,"rows_kept":40,"cut":false,"hidden":false,"merged":[]}
[]
[]
["Invoice: 55H-02406-GM11"]
["                  23.09.2024"]
[null,null,"Treatment by"]
[null,null,"Dr. Roland Backhaus"]
[]
[]
["Mr. Darmo Pranoto Soenjoto"]
["Jakarta"]
["Indonesia"]
[]
[]
["Description","Qty","Price","Amount"]
["Patient: Darmo Pranoto Soenjoto, M, 20.06.1946"]
[]
["Gut Microbiome 4 transplants",1,{"$f":"IFERROR(VLOOKUP(A17,'Services-Produits'!$A$1:$B$2000,2,FALSE),\"\")","v":28799},{"$f":"IFERROR(B17*C17,\"\")","v":28799}]
["Cerebrolysin 5 ml",1,{"$f":"IFERROR(VLOOKUP(A18,'Services-Produits'!$A$1:$B$2000,2,FALSE),\"\")","v":63.8},{"$f":"IFERROR(B18*C18,\"\")","v":63.8}]
["Gedächtnis Infusion",1,{"$f":"IFERROR(VLOOKUP(A19,'Services-Produits'!$A$1:$B$2000,2,FALSE),\"\")","v":378},378]
["Mitochondrien Infusion",2,{"$f":"IFERROR(VLOOKUP(A20,'Services-Produits'!$A$1:$B$2000,2,FALSE),\"\")","v":428.7},857.4]
["Cerebrolysin 10 ml",1,{"$f":"IFERROR(VLOOKUP(A21,'Services-Produits'!$A$1:$B$2000,2,FALSE),\"\")","v":99.6},99.6]
["Artesunat",6,{"$f":"IFERROR(VLOOKUP(A22,'Services-Produits'!$A$1:$B$2000,2,FALSE),\"\")","v":67.2},403.20000000000005]
["Consultation",1,{"$f":"IFERROR(VLOOKUP(A23,'Services-Produits'!$A$1:$B$2000,2,FALSE),\"\")","v":1800},1800]
[null,null,{"$f":"IFERROR(VLOOKUP(A24,'Services-Produits'!$A$1:$B$2000,2,FALSE),\"\")","v":""},""]
[null,null,{"$f":"IFERROR(VLOOKUP(A25,'Services-Produits'!$A$1:$B$2000,2,FALSE),\"\")","v":""},""]
[null,null,{"$f":"IFERROR(VLOOKUP(A26,'Services-Produits'!$A$1:$B$2000,2,FALSE),\"\")","v":""},""]
[null,null,{"$f":"IFERROR(VLOOKUP(A27,'Services-Produits'!$A$1:$B$2000,2,FALSE),\"\")","v":""},""]
[null,null,{"$f":"IFERROR(VLOOKUP(A28,'Services-Produits'!$A$1:$B$2000,2,FALSE),\"\")","v":""},""]
[null,null,{"$f":"IFERROR(VLOOKUP(A29,'Services-Produits'!$A$1:$B$2000,2,FALSE),\"\")","v":""},""]
[null,null,{"$f":"IFERROR(VLOOKUP(A30,'Services-Produits'!$A$1:$B$2000,2,FALSE),\"\")","v":""},""]
[null,null,{"$f":"IFERROR(VLOOKUP(A31,'Services-Produits'!$A$1:$B$2000,2,FALSE),\"\")","v":""},""]
[null,null,{"$f":"IFERROR(VLOOKUP(A32,'Services-Produits'!$A$1:$B$2000,2,FALSE),\"\")","v":""},""]
[null,null,{"$f":"IFERROR(VLOOKUP(A33,'Services-Produits'!$A$1:$B$2000,2,FALSE),\"\")","v":""},""]
[null,null,{"$f":"IFERROR(VLOOKUP(A34,'Services-Produits'!$A$1:$B$2000,2,FALSE),\"\")","v":""},""]
[null,null,{"$f":"IFERROR(VLOOKUP(A35,'Services-Produits'!$A$1:$B$2000,2,FALSE),\"\")","v":""},""]
[null,null,{"$f":"IFERROR(VLOOKUP(A36,'Services-Produits'!$A$1:$B$2000,2,FALSE),\"\")","v":""},""]
[null,null,{"$f":"IFERROR(VLOOKUP(A37,'Services-Produits'!$A$1:$B$2000,2,FALSE),\"\")","v":""},""]
["Total in CHF",null,null,{"$f":"SUM(D17:D37)","v":32401}]
[]
["Thank you very much for your trust!"]

{"sheet":"Prodjo Handajo Sunjoto","index":14,"n_rows":40,"n_cols":4,"rows_kept":40,"cut":false,"hidden":false,"merged":[]}
[]
[]
["Invoice: 55H-02406-GM11"]
["                  23.09.2024"]
[null,null,"Treatment by"]
[null,null,"Dr. Roland Backhaus"]
[]
[]
["Mr. Prodjo Handajo Sunjoto"]
["Jakarta"]
["Indonesia"]
[]
[]
["Description","Qty","Price","Amount"]
["Patient: Prodjo Handajo Sunjoto, M, 17.08.1941"]
[]
["Gut Microbiome 2 transplants",1,{"$f":"IFERROR(VLOOKUP(A17,'Services-Produits'!$A$1:$B$2000,2,FALSE),\"\")","v":14399.5},{"$f":"IFERROR(B17*C17,\"\")","v":14399.5}]
["Discount 15%",null,null,{"$f":"D17*Discount15","v":-2159.9249999999997}]
["Cerebrolysin 10 ml",4,{"$f":"IFERROR(VLOOKUP(A19,'Services-Produits'!$A$1:$B$2000,2,FALSE),\"\")","v":99.6},{"$f":"IFERROR(B19*C19,\"\")","v":398.4}]
["Cerebrolysin 5 ml",1,{"$f":"IFERROR(VLOOKUP(A20,'Services-Produits'!$A$1:$B$2000,2,FALSE),\"\")","v":63.8},{"$f":"IFERROR(B20*C20,\"\")","v":63.8}]
["Gedächtnis Infusion",4,{"$f":"IFERROR(VLOOKUP(A21,'Services-Produits'!$A$1:$B$2000,2,FALSE),\"\")","v":378},1512]
["Curcumin 150 mg",10,{"$f":"IFERROR(VLOOKUP(A22,'Services-Produits'!$A$1:$B$2000,2,FALSE),\"\")","v":229.2},2292]
[null,null,{"$f":"IFERROR(VLOOKUP(A23,'Services-Produits'!$A$1:$B$2000,2,FALSE),\"\")","v":""},""]
[null,null,{"$f":"IFERROR(VLOOKUP(A24,'Services-Produits'!$A$1:$B$2000,2,FALSE),\"\")","v":""},""]
[null,null,{"$f":"IFERROR(VLOOKUP(A25,'Services-Produits'!$A$1:$B$2000,2,FALSE),\"\")","v":""},""]
[null,null,{"$f":"IFERROR(VLOOKUP(A26,'Services-Produits'!$A$1:$B$2000,2,FALSE),\"\")","v":""},""]
[null,null,{"$f":"IFERROR(VLOOKUP(A27,'Services-Produits'!$A$1:$B$2000,2,FALSE),\"\")","v":""},""]
[null,null,{"$f":"IFERROR(VLOOKUP(A28,'Services-Produits'!$A$1:$B$2000,2,FALSE),\"\")","v":""},""]
[null,null,{"$f":"IFERROR(VLOOKUP(A29,'Services-Produits'!$A$1:$B$2000,2,FALSE),\"\")","v":""},""]
[null,null,{"$f":"IFERROR(VLOOKUP(A30,'Services-Produits'!$A$1:$B$2000,2,FALSE),\"\")","v":""},""]
[null,null,{"$f":"IFERROR(VLOOKUP(A31,'Services-Produits'!$A$1:$B$2000,2,FALSE),\"\")","v":""},""]
[null,null,{"$f":"IFERROR(VLOOKUP(A32,'Services-Produits'!$A$1:$B$2000,2,FALSE),\"\")","v":""},""]
[null,null,{"$f":"IFERROR(VLOOKUP(A33,'Services-Produits'!$A$1:$B$2000,2,FALSE),\"\")","v":""},""]
[null,null,{"$f":"IFERROR(VLOOKUP(A34,'Services-Produits'!$A$1:$B$2000,2,FALSE),\"\")","v":""},""]
[null,null,{"$f":"IFERROR(VLOOKUP(A35,'Services-Produits'!$A$1:$B$2000,2,FALSE),\"\")","v":""},""]
[null,null,{"$f":"IFERROR(VLOOKUP(A36,'Services-Produits'!$A$1:$B$2000,2,FALSE),\"\")","v":""},""]
[null,null,{"$f":"IFERROR(VLOOKUP(A37,'Services-Produits'!$A$1:$B$2000,2,FALSE),\"\")","v":""},""]
["Total in CHF",null,null,{"$f":"SUM(D17:D37)","v":16505.775000000001}]
[]
["Thank you very much for your trust!"]

{"sheet":"Nonda Nellyana Djaja","index":15,"n_rows":40,"n_cols":4,"rows_kept":40,"cut":false,"hidden":false,"merged":[]}
[]
[]
["Invoice: 55H-02406-GM11"]
["                  23.09.2024"]
[null,null,"Treatment by"]
[null,null,"Dr. Roland Backhaus"]
[]
[]
["Mrs. Nonda Nellyana Djaja"]
["Jakarta"]
["Indonesia"]
[]
[]
["Description","Qty","Price","Amount"]
["Patient: Nonda Nellyana Djaja, F, 12.01.1948"]
[]
["Gut Microbiome 2 transplants",1,{"$f":"IFERROR(VLOOKUP(A17,'Services-Produits'!$A$1:$B$2000,2,FALSE),\"\")","v":14399.5},{"$f":"IFERROR(B17*C17,\"\")","v":14399.5}]
["Discount 15%",null,null,{"$f":"D17*Discount15","v":-2159.9249999999997}]
["DCA",18,{"$f":"IFERROR(VLOOKUP(A19,'Services-Produits'!$A$1:$B$2000,2,FALSE),\"\")","v":0},{"$f":"IFERROR(B19*C19,\"\")","v":0}]
["Artesunat",15,{"$f":"IFERROR(VLOOKUP(A20,'Services-Produits'!$A$1:$B$2000,2,FALSE),\"\")","v":67.2},1008]
["Antioxidant Mix",5,{"$f":"IFERROR(VLOOKUP(A21,'Services-Produits'!$A$1:$B$2000,2,FALSE),\"\")","v":410},2050]
["Cerebrolysin 10 ml",null,{"$f":"IFERROR(VLOOKUP(A22,'Services-Produits'!$A$1:$B$2000,2,FALSE),\"\")","v":99.6},0]
[null,null,{"$f":"IFERROR(VLOOKUP(A23,'Services-Produits'!$A$1:$B$2000,2,FALSE),\"\")","v":""},""]
[null,null,{"$f":"IFERROR(VLOOKUP(A24,'Services-Produits'!$A$1:$B$2000,2,FALSE),\"\")","v":""},""]
[null,null,{"$f":"IFERROR(VLOOKUP(A25,'Services-Produits'!$A$1:$B$2000,2,FALSE),\"\")","v":""},""]
[null,null,{"$f":"IFERROR(VLOOKUP(A26,'Services-Produits'!$A$1:$B$2000,2,FALSE),\"\")","v":""},""]
[null,null,{"$f":"IFERROR(VLOOKUP(A27,'Services-Produits'!$A$1:$B$2000,2,FALSE),\"\")","v":""},""]
[null,null,{"$f":"IFERROR(VLOOKUP(A28,'Services-Produits'!$A$1:$B$2000,2,FALSE),\"\")","v":""},""]
[null,null,{"$f":"IFERROR(VLOOKUP(A29,'Services-Produits'!$A$1:$B$2000,2,FALSE),\"\")","v":""},""]
[null,null,{"$f":"IFERROR(VLOOKUP(A30,'Services-Produits'!$A$1:$B$2000,2,FALSE),\"\")","v":""},""]
[null,null,{"$f":"IFERROR(VLOOKUP(A31,'Services-Produits'!$A$1:$B$2000,2,FALSE),\"\")","v":""},""]
[null,null,{"$f":"IFERROR(VLOOKUP(A32,'Services-Produits'!$A$1:$B$2000,2,FALSE),\"\")","v":""},""]
[null,null,{"$f":"IFERROR(VLOOKUP(A33,'Services-Produits'!$A$1:$B$2000,2,FALSE),\"\")","v":""},""]
[null,null,{"$f":"IFERROR(VLOOKUP(A34,'Services-Produits'!$A$1:$B$2000,2,FALSE),\"\")","v":""},""]
[null,null,{"$f":"IFERROR(VLOOKUP(A35,'Services-Produits'!$A$1:$B$2000,2,FALSE),\"\")","v":""},""]
[null,null,{"$f":"IFERROR(VLOOKUP(A36,'Services-Produits'!$A$1:$B$2000,2,FALSE),\"\")","v":""},""]
[null,null,{"$f":"IFERROR(VLOOKUP(A37,'Services-Produits'!$A$1:$B$2000,2,FALSE),\"\")","v":""},""]
["Total in CHF",null,null,{"$f":"SUM(D17:D37)","v":15297.575000000001}]
[]
["Thank you very much for your trust!"]

{"sheet":"Reference2p","index":16,"n_rows":41,"n_cols":8,"rows_kept":41,"cut":false,"hidden":false,"merged":[]}
[]
[]
["Invoice: 55H-02406-GM11"]
["                  04.07.2024"]
[null,null,"Treatment by",null,"Description","Qty","Price","Amount"]
[null,null,"Dr. Roland Backhaus"]
[]
[null,null,null,null,null,null,{"$f":"IFERROR(VLOOKUP(E8,'Services-Produits'!$A$1:$B$2000,2,FALSE),\"\")","v":""},{"$f":"IFERROR(F8*G8,\"\")","v":""}]
[null,null,null,null,null,null,{"$f":"IFERROR(VLOOKUP(E9,'Services-Produits'!$A$1:$B$2000,2,FALSE),\"\")","v":""},{"$f":"IFERROR(F9*G9,\"\")","v":""}]
[null,null,null,null,null,null,{"$f":"IFERROR(VLOOKUP(E10,'Services-Produits'!$A$1:$B$2000,2,FALSE),\"\")","v":""},""]
[null,null,null,null,null,null,{"$f":"IFERROR(VLOOKUP(E11,'Services-Produits'!$A$1:$B$2000,2,FALSE),\"\")","v":""},""]
[null,null,null,null,null,null,{"$f":"IFERROR(VLOOKUP(E12,'Services-Produits'!$A$1:$B$2000,2,FALSE),\"\")","v":""},""]
[null,null,null,null,null,null,{"$f":"IFERROR(VLOOKUP(E13,'Services-Produits'!$A$1:$B$2000,2,FALSE),\"\")","v":""},""]
["Description","Qty","Price","Amount",null,null,{"$f":"IFERROR(VLOOKUP(E14,'Services-Produits'!$A$1:$B$2000,2,FALSE),\"\")","v":""},""]
[null,null,null,null,null,null,{"$f":"IFERROR(VLOOKUP(E15,'Services-Produits'!$A$1:$B$2000,2,FALSE),\"\")","v":""},""]
[null,null,null,null,null,null,{"$f":"IFERROR(VLOOKUP(E16,'Services-Produits'!$A$1:$B$2000,2,FALSE),\"\")","v":""},""]
[null,null,{"$f":"IFERROR(VLOOKUP(A17,'Services-Produits'!$A$1:$B$2000,2,FALSE),\"\")","v":""},{"$f":"IFERROR(B17*C17,\"\")","v":""},null,null,{"$f":"IFERROR(VLOOKUP(E17,'Services-Produits'!$A$1:$B$2000,2,FALSE),\"\")","v":""},""]
[null,null,{"$f":"IFERROR(VLOOKUP(A18,'Services-Produits'!$A$1:$B$2000,2,FALSE),\"\")","v":""},{"$f":"IFERROR(B18*C18,\"\")","v":""},null,null,{"$f":"IFERROR(VLOOKUP(E18,'Services-Produits'!$A$1:$B$2000,2,FALSE),\"\")","v":""},""]
[null,null,{"$f":"IFERROR(VLOOKUP(A19,'Services-Produits'!$A$1:$B$2000,2,FALSE),\"\")","v":""},"",null,null,{"$f":"IFERROR(VLOOKUP(E19,'Services-Produits'!$A$1:$B$2000,2,FALSE),\"\")","v":""},""]
[null,null,{"$f":"IFERROR(VLOOKUP(A20,'Services-Produits'!$A$1:$B$2000,2,FALSE),\"\")","v":""},"",null,null,{"$f":"IFERROR(VLOOKUP(E20,'Services-Produits'!$A$1:$B$2000,2,FALSE),\"\")","v":""},{"$f":"IFERROR(F20*G20,\"\")","v":""}]
[null,null,{"$f":"IFERROR(VLOOKUP(A21,'Services-Produits'!$A$1:$B$2000,2,FALSE),\"\")","v":""},"",null,null,{"$f":"IFERROR(VLOOKUP(E21,'Services-Produits'!$A$1:$B$2000,2,FALSE),\"\")","v":""},""]
[null,null,{"$f":"IFERROR(VLOOKUP(A22,'Services-Produits'!$A$1:$B$2000,2,FALSE),\"\")","v":""},"",null,null,{"$f":"IFERROR(VLOOKUP(E22,'Services-Produits'!$A$1:$B$2000,2,FALSE),\"\")","v":""},""]
[null,null,{"$f":"IFERROR(VLOOKUP(A23,'Services-Produits'!$A$1:$B$2000,2,FALSE),\"\")","v":""},"",null,null,{"$f":"IFERROR(VLOOKUP(E23,'Services-Produits'!$A$1:$B$2000,2,FALSE),\"\")","v":""},""]
[null,null,{"$f":"IFERROR(VLOOKUP(A24,'Services-Produits'!$A$1:$B$2000,2,FALSE),\"\")","v":""},"",null,null,{"$f":"IFERROR(VLOOKUP(E24,'Services-Produits'!$A$1:$B$2000,2,FALSE),\"\")","v":""},""]
[null,null,{"$f":"IFERROR(VLOOKUP(A25,'Services-Produits'!$A$1:$B$2000,2,FALSE),\"\")","v":""},"",null,null,{"$f":"IFERROR(VLOOKUP(E25,'Services-Produits'!$A$1:$B$2000,2,FALSE),\"\")","v":""},""]
[null,null,{"$f":"IFERROR(VLOOKUP(A26,'Services-Produits'!$A$1:$B$2000,2,FALSE),\"\")","v":""},"",null,null,{"$f":"IFERROR(VLOOKUP(E26,'Services-Produits'!$A$1:$B$2000,2,FALSE),\"\")","v":""},""]
[null,null,{"$f":"IFERROR(VLOOKUP(A27,'Services-Produits'!$A$1:$B$2000,2,FALSE),\"\")","v":""},"","Subtotal-2 in CHF:",null,null,{"$f":"SUM(H8:H26)","v":0}]
[null,null,{"$f":"IFERROR(VLOOKUP(A28,'Services-Produits'!$A$1:$B$2000,2,FALSE),\"\")","v":""},"",null,null,{"$f":"IFERROR(VLOOKUP(E28,'Services-Produits'!$A$1:$B$149,2,FALSE),\"\")","v":""}]
[null,null,{"$f":"IFERROR(VLOOKUP(A29,'Services-Produits'!$A$1:$B$2000,2,FALSE),\"\")","v":""},"","Total in CHF",null,null,{"$f":"D41+H27","v":0}]
[null,null,{"$f":"IFERROR(VLOOKUP(A30,'Services-Produits'!$A$1:$B$2000,2,FALSE),\"\")","v":""},""]
[null,null,{"$f":"IFERROR(VLOOKUP(A31,'Services-Produits'!$A$1:$B$2000,2,FALSE),\"\")","v":""},"","Thank you very much for your trust!"]
[null,null,{"$f":"IFERROR(VLOOKUP(A32,'Services-Produits'!$A$1:$B$2000,2,FALSE),\"\")","v":""},""]
[null,null,{"$f":"IFERROR(VLOOKUP(A33,'Services-Produits'!$A$1:$B$2000,2,FALSE),\"\")","v":""},""]
[null,null,{"$f":"IFERROR(VLOOKUP(A34,'Services-Produits'!$A$1:$B$2000,2,FALSE),\"\")","v":""},""]
[null,null,{"$f":"IFERROR(VLOOKUP(A35,'Services-Produits'!$A$1:$B$2000,2,FALSE),\"\")","v":""},""]
[null,null,{"$f":"IFERROR(VLOOKUP(A36,'Services-Produits'!$A$1:$B$2000,2,FALSE),\"\")","v":""},""]
[null,null,{"$f":"IFERROR(VLOOKUP(A37,'Services-Produits'!$A$1:$B$2000,2,FALSE),\"\")","v":""},""]
[null,null,{"$f":"IFERROR(VLOOKUP(A38,'Services-Produits'!$A$1:$B$2000,2,FALSE),\"\")","v":""},""]
[null,null,{"$f":"IFERROR(VLOOKUP(A39,'Services-Produits'!$A$1:$B$2000,2,FALSE),\"\")","v":""},""]
[null,null,{"$f":"IFERROR(VLOOKUP(A40,'Services-Produits'!$A$1:$B$2000,2,FALSE),\"\")","v":""}]
["Subtotal-1 in CHF:",null,null,{"$f":"SUM(D17:D39)","v":0}]